fUSD/lending_fUSD_20260624
["ID","MTS","AMOUNT","RATE_DAILY","PERIOD"]
[426288529,1782246654000,-573.69,0.00028036,2]
[426288538,1782246654000,-794.62839232,0.0002808,2]
[426288531,1782246654000,-844.37,0.00028038,7]
[426288535,1782246654000,-464.25470516,0.0002808,2]
[426288536,1782246654000,-785.31409651,0.0002808,2]
[426288532,1782246654000,-852.86,0.00028068,30]
[426288534,1782246654000,-553.16284611,0.0002808,2]
[426288530,1782246654000,-852.86,0.00028038,7]
[426288518,1782246654000,-53590.83034882,0.00028,10]
[426288576,1782246654000,-624.98754841,0.00028081,2]
[426288589,1782246654000,-386.2221766,0.0002815,2]
[426288566,1782246654000,-612.7785677,0.00028081,2]
[426288605,1782246654000,-4295.83,0.00028194,7]
[426288606,1782246654000,-5031.92,0.00028194,7]
[426288603,1782246654000,-5032.43,0.00028194,7]
[426288610,1782246654000,-1215.503102,0.00028212,2]
[426288609,1782246654000,-303.0852517,0.00028212,2]
[426288611,1782246654000,-387.86224182,0.00028212,2]
[426288613,1782246654000,-389.50790175,0.00028212,2]
[426288604,1782246654000,-4551.04,0.00028194,7]
[426288608,1782246654000,-300.0,0.000282,20]
[426288612,1782246654000,-783.15673268,0.00028212,2]
[426288624,1782246654000,-493.96108637,0.00028212,2]
[426288625,1782246654000,-166.44261997,0.00028212,2]
[426288616,1782246654000,-457.91761687,0.00028212,2]
[426288607,1782246654000,-4642.85,0.00028194,7]
[426288618,1782246654000,-159.86961265,0.00028212,2]
[426288626,1782246654000,-603.30188193,0.00028228,2]
[426288615,1782246654000,-1022.75184817,0.00028212,2]
[426288614,1782246654000,-476.01897157,0.00028212,2]
[426288623,1782246654000,-477.74084333,0.00028212,2]
[426288620,1782246654000,-795.40347222,0.00028212,2]
[426288621,1782246654000,-1092.99680913,0.00028212,2]
[426288622,1782246654000,-603.29713571,0.00028212,2]
[426288619,1782246654000,-715.92031257,0.00028212,2]
[426288627,1782246654000,-701.27279685,0.00028228,2]
[426288631,1782246654000,-674.36152245,0.00028236,2]
[426288629,1782246654000,-151.27539405,0.00028231,23]
[426288630,1782246654000,-632.38624516,0.00028236,2]
[426288628,1782246654000,-701.24338111,0.00028228,2]
[426288617,1782246654000,-672.27400282,0.00028212,2]
[426288599,1782246654000,-199.90002,0.0002815,2]
[426288564,1782246654000,-628.72933806,0.0002808,2]
[426288597,1782246654000,-160.10957678,0.0002815,2]
[426288598,1782246654000,-400.00879156,0.0002815,2]
[426288571,1782246654000,-619.9278919,0.00028081,2]
[426288568,1782246654000,-612.03556079,0.00028081,2]
[426288569,1782246654000,-834.50107824,0.00028081,2]
[426288574,1782246654000,-631.11805957,0.00028081,2]
[426288572,1782246654000,-744.92914436,0.00028081,2]
[426288573,1782246654000,-173.11501557,0.00028081,2]
[426288577,1782246654000,-883.23077897,0.00028081,2]
[426288580,1782246654000,-711.73623052,0.00028081,2]
[426288582,1782246654000,-844.37,0.00028099,2]
[426288587,1782246654000,-155.35417897,0.0002815,2]
[426288581,1782246654000,-852.86,0.00028099,2]
[426288588,1782246654000,-423.01053378,0.0002815,2]
[426288583,1782246654000,-3448.15,0.00028105,7]
[426288579,1782246654000,-692.25863447,0.00028081,2]
[426288584,1782246654000,-844.38,0.0002813,7]
[426288578,1782246654000,-726.82981423,0.00028081,2]
[426288596,1782246654000,-405.07360901,0.0002815,2]
[426288590,1782246654000,-163.91760907,0.0002815,2]
[426288602,1782246654000,-4295.84,0.00028194,7]
[426288592,1782246654000,-229.16959365,0.0002815,2]
[426288595,1782246654000,-159.8875281,0.0002815,2]
[426288601,1782246654000,-152.0,0.00028168,7]
[426288600,1782246654000,-163.13347052,0.0002815,2]
[426288591,1782246654000,-156.04383365,0.0002815,2]
[426288594,1782246654000,-419.139914,0.0002815,2]
[426288585,1782246654000,-160.38902949,0.0002815,2]
[426288586,1782246654000,-153.20578076,0.0002815,2]
[426288593,1782246654000,-151.03262562,0.0002815,2]
[426288671,1782246655000,-993.2854904,0.00028645,2]
[426288670,1782246655000,-853.1168245,0.00028645,2]
[426288672,1782246655000,-801.63632984,0.00028645,2]
[426288673,1782246655000,-768.43429266,0.00028645,2]
[426288669,1782246655000,-981.64262064,0.00028645,2]
[426288665,1782246655000,-9333.0,0.00028548,10]
[426288668,1782246655000,-350.0,0.00028628,3]
[426288666,1782246655000,-349.06624252,0.0002859,7]
[426288664,1782246655000,-4642.85,0.00028516,30]
[426288675,1782246655000,-867.84193759,0.00028645,2]
[426288674,1782246655000,-771.58083962,0.00028645,2]
[426288667,1782246655000,-814.48789921,0.0002859,7]
[426288676,1782246655000,-955.2820194,0.00028645,2]
[426288688,1782246655000,-889.67028815,0.00028646,2]
[426288680,1782246655000,-785.91167258,0.00028645,2]
[426288679,1782246655000,-760.79365828,0.00028645,2]
[426288677,1782246655000,-967.03263215,0.00028645,2]
[426288687,1782246655000,-865.32329309,0.00028646,2]
[426288682,1782246655000,-765.97320962,0.00028646,2]
[426288681,1782246655000,-774.14617438,0.00028645,2]
[426288685,1782246655000,-931.16143045,0.00028646,2]
[426288683,1782246655000,-954.14114874,0.00028646,2]
[426288684,1782246655000,-774.90986487,0.00028646,2]
[426288686,1782246655000,-781.23443551,0.00028646,2]
[426288700,1782246655000,-396.34,0.00028726,2]
[426288689,1782246655000,-348.63582345,0.00028658,2]
[426288659,1782246655000,-5034.28,0.00028516,30]
[426288678,1782246655000,-986.21940572,0.00028645,2]
[426288658,1782246655000,-2588117.0,0.000285,30]
[426288643,1782246655000,-497.237231,0.00028318,7]
[426288660,1782246655000,-5032.43,0.00028516,30]
[426288699,1782246655000,-480.95,0.00028726,2]
[426288633,1782246655000,-960.5,0.00028267,2]
[426288632,1782246655000,-1846.33,0.0002824,2]
[426288634,1782246655000,-442.35374789,0.0002828,2]
[426288638,1782246655000,-200.0,0.00028285,2]
[426288636,1782246655000,-815.03133267,0.0002828,2]
[426288637,1782246655000,-565.71515743,0.0002828,2]
[426288635,1782246655000,-162.93762488,0.0002828,2]
[426288650,1782246655000,-4642.85,0.00028355,2]
[426288640,1782246655000,-708.43949898,0.000283,2]
[426288648,1782246655000,-4295.83,0.00028355,2]
[426288642,1782246655000,-11452.00480772,0.000283,2]
[426288641,1782246655000,-708.43949898,0.000283,2]
[426288657,1782246655000,-814.18765773,0.00028493,2]
[426288644,1782246655000,-214.8148482,0.00028318,2]
[426288645,1782246655000,-438.233244,0.00028324,7]
[426288639,1782246655000,-708.439499,0.000283,2]
[426288647,1782246655000,-4551.04,0.00028355,2]
[426288646,1782246655000,-5032.43,0.00028355,2]
[426288651,1782246655000,-300.0,0.000284,20]
[426288652,1782246655000,-1846.33,0.00028451,2]
[426288653,1782246655000,-151.27539405,0.0002848,24]
[426288655,1782246655000,-172.08,0.00028493,2]
[426288656,1782246655000,-3000.0,0.00028493,2]
[426288663,1782246655000,-5031.92,0.00028516,30]
[426288654,1782246655000,-680.0,0.00028485,10]
[426288661,1782246655000,-4551.04,0.00028516,30]
[426288662,1782246655000,-4295.83,0.00028516,30]
[426288649,1782246655000,-5031.92,0.00028355,2]
[426288691,1782246655000,-1846.33,0.00028662,2]
[426288694,1782246655000,-4642.85,0.00028677,7]
[426288690,1782246655000,-174.31791173,0.00028658,2]
[426288731,1782246655000,-250.0,0.00028835,30]
[426288730,1782246655000,-271.0,0.00028835,30]
[426288736,1782246655000,-1545.0,0.00028835,30]
[426288729,1782246655000,-1072.0,0.00028835,30]
[426288727,1782246655000,-842.52814067,0.00028804,2]
[426288732,1782246655000,-248.0,0.00028835,30]
[426288733,1782246655000,-1058.0,0.00028835,30]
[426288737,1782246655000,-155.0,0.00028835,30]
[426288734,1782246655000,-151.0,0.00028835,30]
[426288735,1782246655000,-365.0,0.00028835,30]
[426288739,1782246655000,-183.0,0.00028835,30]
[426288749,1782246655000,-1076.31,0.000289,30]
[426288750,1782246655000,-344.0,0.00028915,30]
[426288728,1782246655000,-294.54871921,0.00028833,2]
[426288741,1782246655000,-1076.31,0.0002885,30]
[426288740,1782246655000,-4295.83,0.00028838,2]
[426288742,1782246655000,-150.0,0.00028855,2]
[426288743,1782246655000,-304.0,0.00028856,3]
[426288746,1782246655000,-503.39,0.000289,72]
[426288745,1782246655000,-1846.32,0.00028872,2]
[426288744,1782246655000,-247.0,0.00028864,5]
[426288747,1782246655000,-1347.0,0.000289,2]
[426288748,1782246655000,-706.0,0.000289,2]
[426288751,1782246655000,-461.0,0.00028915,30]
[426288755,1782246655000,-23724.70101728,0.0002897,6]
[426288692,1782246655000,-4551.04,0.00028677,7]
[426288753,1782246655000,-350.0,0.00028925,2]
[426288752,1782246655000,-158.0,0.00028915,30]
[426288738,1782246655000,-692.0,0.00028835,30]
[426288726,1782246655000,-790.48280645,0.00028804,2]
[426288754,1782246655000,-1076.31,0.0002895,30]
[426288720,1782246655000,-876.55422639,0.00028796,2]
[426288722,1782246655000,-357.0,0.000288,14]
[426288693,1782246655000,-4295.83,0.00028677,7]
[426288696,1782246655000,-573.69,0.00028687,2]
[426288695,1782246655000,-644.42,0.00028686,2]
[426288698,1782246655000,-498.52025,0.00028691,7]
[426288702,1782246655000,-151.0,0.00028729,2]
[426288701,1782246655000,-482.48,0.00028726,2]
[426288712,1782246655000,-1519.3788775,0.00028779,2]
[426288703,1782246655000,-482.37,0.00028732,2]
[426288708,1782246655000,-573.72,0.00028751,2]
[426288710,1782246655000,-150.0,0.00028767,2]
[426288704,1782246655000,-395.9,0.00028747,2]
[426288711,1782246655000,-151.27539405,0.00028774,25]
[426288706,1782246655000,-503.0,0.00028751,2]
[426288697,1782246655000,-644.38,0.00028688,2]
[426288707,1782246655000,-573.62,0.00028751,2]
[426288723,1782246655000,-357.0,0.000288,14]
[426288721,1782246655000,-876.59099606,0.00028796,2]
[426288719,1782246655000,-754.12735242,0.00028796,2]
[426288718,1782246655000,-754.12141964,0.00028779,2]
[426288705,1782246655000,-482.4,0.00028747,2]
[426288725,1782246655000,-1076.31,0.000288,30]
[426288724,1782246655000,-216.39158367,0.000288,30]
[426288713,1782246655000,-978.94591585,0.00028779,2]
[426288716,1782246655000,-894.90039072,0.00028779,2]
[426288715,1782246655000,-840.34250353,0.00028779,2]
[426288714,1782246655000,-1278.43981021,0.00028779,2]
[426288709,1782246655000,-150.0,0.00028767,2]
[426288717,1782246655000,-1366.24601141,0.00028779,2]
[426288792,1782246656000,-331.11,0.00029,2]
[426288793,1782246656000,-3241.58,0.00029,2]
[426288800,1782246656000,-207708.9919,0.00029,2]
[426288790,1782246656000,-200.0,0.00029,2]
[426288783,1782246656000,-2054.3208557,0.00029,2]
[426288801,1782246656000,-589.6,0.00029,2]
[426288802,1782246656000,-200.0,0.00029,2]
[426288786,1782246656000,-200.0,0.00029,2]
[426288787,1782246656000,-200.0,0.00029,2]
[426288782,1782246656000,-2000.0,0.00029,2]
[426288791,1782246656000,-200.0,0.00029,2]
[426288795,1782246656000,-10000.0,0.00029,2]
[426288803,1782246656000,-477.65180437,0.00029,120]
[426288796,1782246656000,-1809.69762904,0.00029,2]
[426288794,1782246656000,-2500.0,0.00029,2]
[426288799,1782246656000,-142925.70506031,0.00029,2]
[426288797,1782246656000,-2403.6976341,0.00029,2]
[426288804,1782246656000,-3500.608947,0.00029,2]
[426288806,1782246656000,-500.0,0.00029,2]
[426288812,1782246656000,-500.0,0.00029,2]
[426288808,1782246656000,-500.0,0.00029,2]
[426288815,1782246656000,-500.0,0.00029,2]
[426288807,1782246656000,-500.0,0.00029,2]
[426288809,1782246656000,-500.0,0.00029,2]
[426288785,1782246656000,-1322.15,0.00029,2]
[426288798,1782246656000,-10000.0,0.00029,2]
[426288781,1782246656000,-211.9,0.00029,2]
[426288769,1782246656000,-500.0,0.00029,2]
[426288789,1782246656000,-200.0,0.00029,2]
[426288810,1782246656000,-500.0,0.00029,2]
[426288756,1782246656000,-186.20310215,0.00028971,2]
[426288763,1782246656000,-500.0,0.00029,2]
[426288760,1782246656000,-500.0,0.00029,2]
[426288758,1782246656000,-500.0,0.00029,2]
[426288757,1782246656000,-150.0,0.00028971,2]
[426288762,1782246656000,-500.0,0.00029,2]
[426288759,1782246656000,-500.0,0.00029,2]
[426288761,1782246656000,-500.0,0.00029,2]
[426288765,1782246656000,-500.0,0.00029,2]
[426288776,1782246656000,-1500.0,0.00029,5]
[426288775,1782246656000,-444.53863553,0.00029,2]
[426288784,1782246656000,-86485.00242767,0.00029,2]
[426288764,1782246656000,-500.0,0.00029,2]
[426288773,1782246656000,-1578.66,0.00029,2]
[426288767,1782246656000,-500.0,0.00029,2]
[426288766,1782246656000,-500.0,0.00029,2]
[426288771,1782246656000,-500.0,0.00029,2]
[426288772,1782246656000,-500.0,0.00029,2]
[426288768,1782246656000,-500.0,0.00029,2]
[426288774,1782246656000,-1578.06,0.00029,2]
[426288779,1782246656000,-10000.0,0.00029,2]
[426288788,1782246656000,-200.0,0.00029,2]
[426288780,1782246656000,-200000.000001,0.00029,3]
[426288777,1782246656000,-1002.564982,0.00029,2]
[426288778,1782246656000,-33732.50297592,0.00029,2]
[426288770,1782246656000,-500.0,0.00029,2]
[426288805,1782246656000,-500.0,0.00029,2]
[426288851,1782246656000,-800.0,0.00029,11]
[426288814,1782246656000,-500.0,0.00029,2]
[426288853,1782246656000,-800.0,0.00029,11]
[426288844,1782246656000,-1400.0,0.00029,2]
[426288852,1782246656000,-800.0,0.00029,11]
[426288842,1782246656000,-1037813.36693089,0.00029,30]
[426288845,1782246656000,-241.9,0.00029,2]
[426288846,1782246656000,-10000.0,0.00029,2]
[426288849,1782246656000,-800.0,0.00029,11]
[426288847,1782246656000,-800.0,0.00029,11]
[426288848,1782246656000,-800.0,0.00029,11]
[426288850,1782246656000,-800.0,0.00029,11]
[426288867,1782246656000,-153.0,0.00029,4]
[426288856,1782246656000,-155.102174,0.00029,7]
[426288854,1782246656000,-800.0,0.00029,11]
[426288868,1782246656000,-153.0,0.00029,4]
[426288858,1782246656000,-157.0,0.00029,4]
[426288861,1782246656000,-153.0,0.00029,4]
[426288855,1782246656000,-157.301191,0.00029,7]
[426288866,1782246656000,-153.0,0.00029,4]
[426288862,1782246656000,-153.0,0.00029,4]
[426288863,1782246656000,-153.0,0.00029,4]
[426288857,1782246656000,-500.0,0.00029,2]
[426288860,1782246656000,-153.0,0.00029,4]
[426288864,1782246656000,-153.0,0.00029,4]
[426288870,1782246656000,-153.0,0.00029,4]
[426288869,1782246656000,-153.0,0.00029,4]
[426288813,1782246656000,-500.0,0.00029,2]
[426288865,1782246656000,-153.0,0.00029,4]
[426288871,1782246656000,-153.0,0.00029,4]
[426288859,1782246656000,-153.0,0.00029,4]
[426288835,1782246656000,-35371.17824666,0.00029,2]
[426288811,1782246656000,-500.0,0.00029,2]
[426288843,1782246656000,-73508.04370303,0.00029,2]
[426288816,1782246656000,-500.0,0.00029,2]
[426288817,1782246656000,-500.0,0.00029,2]
[426288819,1782246656000,-500.0,0.00029,2]
[426288818,1782246656000,-500.0,0.00029,2]
[426288828,1782246656000,-265.22186754,0.00029,2]
[426288820,1782246656000,-500.0,0.00029,2]
[426288826,1782246656000,-2152.43,0.00029,7]
[426288823,1782246656000,-500.0,0.00029,2]
[426288822,1782246656000,-500.0,0.00029,2]
[426288821,1782246656000,-500.0,0.00029,2]
[426288825,1782246656000,-597.79,0.00029,2]
[426288827,1782246656000,-545.06019224,0.00029,2]
[426288833,1782246656000,-5301.19710625,0.00029,2]
[426288830,1782246656000,-223.49358528,0.00029,2]
[426288824,1782246656000,-500.0,0.00029,2]
[426288837,1782246656000,-141143.27252246,0.00029,7]
[426288832,1782246656000,-42582.90852008,0.00029,2]
[426288836,1782246656000,-1003.6689913,0.00029,2]
[426288834,1782246656000,-41532.33377062,0.00029,2]
[426288831,1782246656000,-1933.09,0.00029,7]
[426288838,1782246656000,-220.33115725,0.00029,2]
[426288839,1782246656000,-9571.10944819,0.00029,2]
[426288829,1782246656000,-219.05497627,0.00029,2]
[426288840,1782246656000,-2328.49773572,0.00029,2]
[426288841,1782246656000,-13013.91936189,0.00029,2]
[426288894,1782246657000,-401.508067,0.00029,7]
[426288900,1782246657000,-242.986246,0.00029,7]
[426288916,1782246657000,-654.820538,0.00029,7]
[426288901,1782246657000,-242.986246,0.00029,7]
[426288904,1782246657000,-151.0,0.00029,7]
[426288897,1782246657000,-242.986246,0.00029,7]
[426288899,1782246657000,-242.986246,0.00029,7]
[426288903,1782246657000,-151.0,0.00029,7]
[426288906,1782246657000,-500.0,0.00029,2]
[426288915,1782246657000,-654.820538,0.00029,7]
[426288909,1782246657000,-1056.167942,0.00029,7]
[426288907,1782246657000,-1311.858511,0.00029,7]
[426288908,1782246657000,-1311.858511,0.00029,7]
[426288912,1782246657000,-1311.858511,0.00029,7]
[426288911,1782246657000,-1056.167942,0.00029,7]
[426288913,1782246657000,-1056.167942,0.00029,7]
[426288910,1782246657000,-1311.858511,0.00029,7]
[426288914,1782246657000,-1056.167942,0.00029,7]
[426288898,1782246657000,-151.0,0.00029,7]
[426288918,1782246657000,-654.820538,0.00029,7]
[426288905,1782246657000,-151.0,0.00029,7]
[426288902,1782246657000,-2175.0,0.00029,7]
[426288884,1782246657000,-155.0,0.00029,4]
[426288895,1782246657000,-401.508067,0.00029,7]
[426288917,1782246657000,-654.820538,0.00029,7]
[426288879,1782246657000,-155.0,0.00029,4]
[426288874,1782246657000,-155.0,0.00029,4]
[426288873,1782246657000,-158.0,0.00029,4]
[426288878,1782246657000,-155.0,0.00029,4]
[426288872,1782246657000,-153.0,0.00029,4]
[426288876,1782246657000,-155.0,0.00029,4]
[426288875,1782246657000,-155.0,0.00029,4]
[426288877,1782246657000,-155.0,0.00029,4]
[426288881,1782246657000,-155.0,0.00029,4]
[426288896,1782246657000,-500.0,0.00029,2]
[426288880,1782246657000,-155.0,0.00029,4]
[426288882,1782246657000,-155.0,0.00029,4]
[426288883,1782246657000,-155.0,0.00029,4]
[426288886,1782246657000,-155.0,0.00029,4]
[426288892,1782246657000,-401.508067,0.00029,7]
[426288891,1782246657000,-500.0,0.00029,2]
[426288885,1782246657000,-155.0,0.00029,4]
[426288890,1782246657000,-155.0,0.00029,4]
[426288888,1782246657000,-155.0,0.00029,4]
[426288889,1782246657000,-155.0,0.00029,4]
[426288893,1782246657000,-401.508067,0.00029,7]
[426288887,1782246657000,-155.0,0.00029,4]
[426288928,1782246657000,-187.792673,0.00029,7]
[426288933,1782246657000,-2754.272956,0.00029,7]
[426288923,1782246657000,-161.795167,0.00029,7]
[426288953,1782246657000,-2427.030217,0.00029,2]
[426288945,1782246657000,-10000.0,0.00029,2]
[426288951,1782246657000,-4295.92,0.00029,30]
[426288948,1782246657000,-589.258295,0.00029,7]
[426288946,1782246657000,-500.0,0.00029,2]
[426288949,1782246657000,-589.258295,0.00029,7]
[426288955,1782246657000,-3000.0,0.00029041,2]
[426288954,1782246657000,-456.08842521,0.00029,2]
[426288956,1782246657000,-814.18765773,0.00029041,2]
[426288957,1782246657000,-1076.31,0.0002905,30]
[426288965,1782246657000,-534.05,0.000291,2]
[426288958,1782246657000,-152.0,0.00029071,8]
[426288919,1782246657000,-500.0,0.00029,2]
[426288959,1782246657000,-1846.32,0.00029083,2]
[426288960,1782246657000,-680.0,0.00029091,10]
[426288961,1782246657000,-119673.0,0.000291,30]
[426288963,1782246657000,-534.05,0.000291,2]
[426288964,1782246657000,-534.05,0.000291,2]
[426288962,1782246657000,-1671.62,0.000291,4]
[426288967,1782246657000,-534.05,0.000291,2]
[426288968,1782246657000,-534.05,0.000291,2]
[426288943,1782246657000,-800.0,0.00029,11]
[426288952,1782246657000,-500.0,0.00029,2]
[426288966,1782246657000,-534.05,0.000291,2]
[426288950,1782246657000,-589.258295,0.00029,7]
[426288944,1782246657000,-704.93046732,0.00029,11]
[426288925,1782246657000,-500.0,0.00029,2]
[426288922,1782246657000,-161.795167,0.00029,7]
[426288920,1782246657000,-151.0,0.00029,7]
[426288929,1782246657000,-187.792673,0.00029,7]
[426288924,1782246657000,-161.795167,0.00029,7]
[426288927,1782246657000,-151.0,0.00029,7]
[426288926,1782246657000,-161.795167,0.00029,7]
[426288931,1782246657000,-2754.272956,0.00029,7]
[426288930,1782246657000,-187.792673,0.00029,7]
[426288921,1782246657000,-151.0,0.00029,7]
[426288932,1782246657000,-187.792673,0.00029,7]
[426288934,1782246657000,-2754.272956,0.00029,7]
[426288935,1782246657000,-2754.272956,0.00029,7]
[426288940,1782246657000,-1993.101868,0.00029,7]
[426288938,1782246657000,-1993.101868,0.00029,7]
[426288936,1782246657000,-1076.31,0.00029,30]
[426288937,1782246657000,-500.0,0.00029,2]
[426288939,1782246657000,-1993.101868,0.00029,7]
[426288942,1782246657000,-800.0,0.00029,11]
[426288941,1782246657000,-1993.101868,0.00029,7]
[426288947,1782246657000,-589.258295,0.00029,7]
[426288974,1782246658000,-1076.31,0.000292,30]
[426288972,1782246658000,-1076.31,0.0002915,30]
[426288975,1782246658000,-497.237231,0.00029241,7]
[426288973,1782246658000,-1621.26,0.000292,7]
[426288969,1782246658000,-404.59,0.000291,2]
[426288976,1782246658000,-1076.31,0.0002925,30]
[426288978,1782246658000,-350.0,0.00029297,3]
[426288971,1782246658000,-151.27539405,0.00029117,26]
[426288970,1782246658000,-1076.31,0.000291,30]
[426288977,1782246658000,-1846.32,0.00029294,2]
[426288980,1782246658000,-350.0,0.00029309,3]
[426288982,1782246658000,-200.0,0.00029366,7]
[426288987,1782246658000,-359.83,0.00029382,2]
[426288990,1782246658000,-675.00380405,0.000294,2]
[426288986,1782246658000,-312.7,0.00029382,2]
[426288989,1782246658000,-18032.1828941,0.000294,2]
[426288984,1782246658000,-200.0,0.00029366,7]
[426288991,1782246658000,-400.01419502,0.000294,2]
[426288981,1782246658000,-684.3557816,0.00029321,4]
[426288983,1782246658000,-200.0,0.00029366,7]
[426288988,1782246658000,-4231707.69630261,0.000294,2]
[426288979,1782246658000,-1076.31,0.000293,30]
[426288985,1782246658000,-200.0,0.00029366,7]
[426288992,1782246659000,-410.0,0.000294,2]
[426289001,1782246659000,-429.09384714,0.00027397,2]
[426288993,1782246659000,-150.0,0.00010624,2]
[426288994,1782246659000,-356.5380858,0.00014069,2]
[426288995,1782246659000,-306.34,0.00018608,2]
[426288999,1782246659000,-150.0,0.00024658,2]
[426289000,1782246659000,-300.94073486,0.00027397,2]
[426288996,1782246659000,-306.34,0.00018608,2]
[426289004,1782246659000,-231.19657086,0.00027397,10]
[426288997,1782246659000,-306.34,0.00018608,2]
[426288998,1782246659000,-150.0,0.00024658,2]
[426289003,1782246659000,-473.00342914,0.00027397,2]
[426289002,1782246659000,-257.03115286,0.00027397,2]
[426289010,1782246661000,-166.74533052,0.00018608,2]
[426289007,1782246661000,-34.39158367,0.00010624,2]
[426289009,1782246661000,-306.34,0.00018608,2]
[426289008,1782246661000,-356.5380858,0.00014346,2]
[426289006,1782246661000,-115.60841633,0.00010624,2]
[426289005,1782246661000,-216.39158367,8.868e-05,2]
[426289012,1782246788000,-150.0,8.602e-05,2]
[426289013,1782246841000,-827.171266,8.606e-05,2]
[426289014,1782246895000,-150.0,8.65e-05,2]
[426289015,1782246949000,-500.0,8.698e-05,2]
[426289016,1782247003000,-160.0,8.796e-05,2]
[426289017,1782247056000,-216.39158367,8.796e-05,2]
[426289018,1782247110000,-216.39158367,8.797e-05,2]
[426289019,1782247163000,-250.0,8.815e-05,2]
[426289020,1782247217000,-274.83839149,8.828e-05,2]
[426289021,1782247270000,-237.43359588,8.827e-05,2]
[426289022,1782247499000,-500.0,8.825e-05,2]
[426289023,1782247552000,-1629.8,8.825e-05,2]
[426289025,1782247573000,-1629.8,8.825e-05,2]
[426289026,1782247595000,-753.58810265,8.825e-05,2]
[426289027,1782247644000,-152.06846285,8.825e-05,2]
[426289028,1782247698000,-150.0,8.824e-05,2]
[426289029,1782247751000,-500.0,8.823e-05,2]
[426289030,1782247805000,-500.25736623,8.823e-05,2]
[426289058,1782247832000,-334.33920472,8.823e-05,2]
[426289071,1782247832000,-500.0,8.823e-05,2]
[426289069,1782247832000,-500.0,8.823e-05,2]
[426289072,1782247832000,-500.0,8.823e-05,2]
[426289064,1782247832000,-107.62771969,8.823e-05,2]
[426289065,1782247832000,-500.0,8.823e-05,2]
[426289063,1782247832000,-392.37228031,8.823e-05,2]
[426289062,1782247832000,-106.80849339,8.823e-05,2]
[426289068,1782247832000,-500.0,8.823e-05,2]
[426289070,1782247832000,-500.0,8.823e-05,2]
[426289066,1782247832000,-500.0,8.823e-05,2]
[426289073,1782247832000,-436.8961192,8.823e-05,2]
[426289080,1782247832000,-604.7637659,8.824e-05,2]
[426289074,1782247832000,-500.0,8.823e-05,2]
[426289059,1782247832000,-500.0,8.823e-05,2]
[426289067,1782247832000,-500.0,8.823e-05,2]
[426289060,1782247832000,-93.19150661,8.823e-05,2]
[426289044,1782247832000,-500.0,8.823e-05,2]
[426289061,1782247832000,-300.0,8.823e-05,2]
[426289039,1782247832000,-499.07432918,8.725e-05,2]
[426289042,1782247832000,-500.0,8.725e-05,2]
[426289081,1782247832000,-500.0,8.824e-05,2]
[426289043,1782247832000,-302.09777082,8.725e-05,2]
[426289045,1782247832000,-500.0,8.823e-05,2]
[426289048,1782247832000,-500.0,8.823e-05,2]
[426289046,1782247832000,-500.0,8.823e-05,2]
[426289047,1782247832000,-433.97795961,8.823e-05,2]
[426289049,1782247832000,-428.64220453,8.823e-05,2]
[426289052,1782247832000,-500.0,8.823e-05,2]
[426289051,1782247832000,-500.0,8.823e-05,2]